[Event "*** Titled Tuesday Blitz"]
[Site "Chess.com"]
[Date "2020.11.24"]
[Round "9"]
[White "elamier"]
[Black "sergeikim"]
[Result "1-0"]
[WhiteElo "2374"]
[BlackElo "2508"]
[TimeControl "180+1"]
[EndTime "12:04:34 PST"]
[Termination "elamier won on time"]

1. e4 {[%clk 0:03:00.9]} 1... e5 {[%clk 0:02:59.4]} 2. Nf3 {[%clk 0:03:00.1]}
2... Nc6 {[%clk 0:02:59.4]} 3. Bb5 {[%clk 0:03:00]} 3... a6 {[%clk 0:02:59.5]}
4. Ba4 {[%clk 0:03:00.7]} 4... Nf6 {[%clk 0:02:59.4]} 5. O-O {[%clk 0:03:00.7]}
5... b5 {[%clk 0:02:58.5]} 6. Bb3 {[%clk 0:03:00.2]} 6... Bc5 {[%clk 0:02:59]}
7. Nxe5 {[%clk 0:02:58.2]} 7... Nxe5 {[%clk 0:02:58.2]} 8. d4 {[%clk 0:02:58.1]}
8... Bxd4 {[%clk 0:02:58.3]} 9. Qxd4 {[%clk 0:02:56.7]} 9... d6 {[%clk
0:02:58.6]} 10. c3 {[%clk 0:02:41.9]} 10... O-O {[%clk 0:02:56]} 11. Bg5 {[%clk
0:02:39.4]} 11... c5 {[%clk 0:02:50.9]} 12. Qe3 {[%clk 0:02:36.2]} 12... h6
{[%clk 0:02:24.4]} 13. Bh4 {[%clk 0:02:31.8]} 13... Ng6 {[%clk 0:02:23.5]} 14.
Bg3 {[%clk 0:02:28.8]} 14... Bb7 {[%clk 0:02:21.2]} 15. Nd2 {[%clk 0:02:25.8]}
15... Re8 {[%clk 0:02:18.8]} 16. Bc2 {[%clk 0:02:01.1]} 16... Rc8 {[%clk
0:02:02.6]} 17. Rad1 {[%clk 0:01:58.8]} 17... d5 {[%clk 0:02:02]} 18. e5 {[%clk
0:01:50.9]} 18... Ng4 {[%clk 0:01:58.3]} 19. Qd3 {[%clk 0:01:22.9]} 19... N4xe5
{[%clk 0:01:54.5]} 20. Bxe5 {[%clk 0:01:19.8]} 20... Rxe5 {[%clk 0:01:54]} 21.
f4 {[%clk 0:01:19.9]} 21... Re8 {[%clk 0:01:44.5]} 22. Nf3 {[%clk 0:01:15.5]}
22... c4 {[%clk 0:01:38.8]} 23. Qd2 {[%clk 0:01:12.2]} 23... Qf6 {[%clk
0:01:31.6]} 24. Nd4 {[%clk 0:01:10.2]} 24... Re7 {[%clk 0:01:28.9]} 25. Rf3
{[%clk 0:01:05.8]} 25... Rce8 {[%clk 0:01:27.3]} 26. Rdf1 {[%clk 0:01:00.7]}
26... Bc8 {[%clk 0:01:24.8]} 27. Rg3 {[%clk 0:00:55.5]} 27... Nh4 {[%clk
0:01:15.9]} 28. f5 {[%clk 0:00:47.5]} 28... Re5 {[%clk 0:00:56.4]} 29. Qf4
{[%clk 0:00:44.3]} 29... Re1 {[%clk 0:00:55.2]} 30. Rg4 {[%clk 0:00:35.8]} 30...
Rxf1+ {[%clk 0:00:50.4]} 31. Kxf1 {[%clk 0:00:34.2]} 31... Qe7 {[%clk
0:00:37.4]} 32. Qf2 {[%clk 0:00:33.5]} 32... Ng6 {[%clk 0:00:31.3]} 33. Rg3
{[%clk 0:00:22.8]} 33... Ne5 {[%clk 0:00:24.6]} 34. f6 {[%clk 0:00:22.8]} 34...
Qd6 {[%clk 0:00:16.7]} 35. Rxg7+ {[%clk 0:00:23]} 35... Kh8 {[%clk 0:00:16.9]}
36. Qf4 {[%clk 0:00:20.2]} 36... Ng4 {[%clk 0:00:03.8]} 37. Rxg4 {[%clk
0:00:19.1]} 37... Qxf4+ {[%clk 0:00:03.1]} 38. Rxf4 {[%clk 0:00:18.8]} 38... Be6
{[%clk 0:00:02.9]} 39. Nxe6 {[%clk 0:00:17.5]} 39... Rxe6 {[%clk 0:00:03]} 40.
Kf2 {[%clk 0:00:16.4]} 40... Re5 {[%clk 0:00:03]} 41. Rf3 {[%clk 0:00:15.4]}
41... Kg8 {[%clk 0:00:03]} 42. g3 {[%clk 0:00:15.6]} 42... d4 {[%clk 0:00:02.7]}
43. cxd4 {[%clk 0:00:14.9]} 43... Rd5 {[%clk 0:00:03.3]} 44. Rf4 {[%clk
0:00:14.5]} 44... b4 {[%clk 0:00:02.7]} 45. Ke3 {[%clk 0:00:14.4]} 45... Kf8
{[%clk 0:00:02.8]} 46. Be4 {[%clk 0:00:13.7]} 46... Rd6 {[%clk 0:00:02.6]} 47.
d5 {[%clk 0:00:13.8]} 47... c3 {[%clk 0:00:02.6]} 48. bxc3 {[%clk 0:00:13.4]}
48... bxc3 {[%clk 0:00:03.5]} 49. Kd4 {[%clk 0:00:13.5]} 49... Ke8 {[%clk
0:00:04.3]} 50. Kxc3 {[%clk 0:00:13]} 50... Rb6 {[%clk 0:00:04.3]} 51. Kd4
{[%clk 0:00:12.8]} 51... Kd7 {[%clk 0:00:04.7]} 52. Rf2 {[%clk 0:00:12]} 52...
Kd6 {[%clk 0:00:04.5]} 53. Rc2 {[%clk 0:00:11.6]} 53... Rb4+ {[%clk 0:00:04.5]}
54. Rc4 {[%clk 0:00:11.6]} 54... Rb2 {[%clk 0:00:04.4]} 55. Rc6+ {[%clk
0:00:11.6]} 55... Kd7 {[%clk 0:00:05]} 56. Rxa6 {[%clk 0:00:11.4]} 56... Rxh2
{[%clk 0:00:04.2]} 57. Bf5+ {[%clk 0:00:11.6]} 57... Kc7 {[%clk 0:00:03.2]} 58.
d6+ {[%clk 0:00:11.9]} 58... Kb7 {[%clk 0:00:02.9]} 59. d7 {[%clk 0:00:11.4]}
59... Rd2+ {[%clk 0:00:02.1]} 60. Bd3 {[%clk 0:00:11]} 60... Kc7 {[%clk
0:00:01.9]} 61. Ra7+ {[%clk 0:00:10.6]} 61... Kd8 {[%clk 0:00:01.1]} 62. Ke3
{[%clk 0:00:10.8]} 62... Rd1 {[%clk 0:00:01.2]} 63. Bf5 {[%clk 0:00:10.9]} 1-0

[Event "*** Titled Tuesday Blitz"]
[Site "Chess.com"]
[Date "2020.11.24"]
[Round "9"]
[White "Das_Virus_2020"]
[Black "mortngabriel"]
[Result "0-1"]
[WhiteElo "2477"]
[BlackElo "2366"]
[TimeControl "180+1"]
[EndTime "12:04:36 PST"]
[Termination "mortngabriel won on time"]

1. e4 {[%clk 0:03:00.9]} 1... c5 {[%clk 0:01:55.6]} 2. Nc3 {[%clk 0:02:58.8]}
2... a6 {[%clk 0:01:54.7]} 3. f4 {[%clk 0:02:58.3]} 3... b5 {[%clk 0:01:54.8]}
4. Nf3 {[%clk 0:02:54.8]} 4... Bb7 {[%clk 0:01:53.2]} 5. d3 {[%clk 0:02:53.7]}
5... e6 {[%clk 0:01:51.6]} 6. Be2 {[%clk 0:02:51.1]} 6... d5 {[%clk 0:01:50]} 7.
f5 {[%clk 0:02:23.9]} 7... exf5 {[%clk 0:01:41.8]} 8. Nxd5 {[%clk 0:02:22.3]}
8... Bxd5 {[%clk 0:01:39.7]} 9. exd5 {[%clk 0:02:21.8]} 9... Qxd5 {[%clk
0:01:34]} 10. O-O {[%clk 0:02:21.4]} 10... Nf6 {[%clk 0:01:30.6]} 11. Ng5 {[%clk
0:01:53.4]} 11... Nc6 {[%clk 0:01:17.9]} 12. Bf3 {[%clk 0:01:52.5]} 12... Qd7
{[%clk 0:01:13.5]} 13. Qe1+ {[%clk 0:01:39]} 13... Be7 {[%clk 0:01:13.5]} 14.
Kh1 {[%clk 0:01:30.7]} 14... Ra7 {[%clk 0:01:12.6]} 15. Nh3 {[%clk 0:01:28.8]}
15... O-O {[%clk 0:01:10.5]} 16. Nf4 {[%clk 0:01:28.6]} 16... Nd4 {[%clk
0:01:06.9]} 17. Bd1 {[%clk 0:01:26.3]} 17... Bd6 {[%clk 0:01:05.9]} 18. c3
{[%clk 0:01:25.6]} 18... Ne6 {[%clk 0:01:03.5]} 19. Nh5 {[%clk 0:01:02.2]} 19...
Nxh5 {[%clk 0:01:03.3]} 20. Bxh5 {[%clk 0:01:02.2]} 20... g6 {[%clk 0:01:03.6]}
21. Bf3 {[%clk 0:01:01.4]} 21... Bf4 {[%clk 0:01:00.9]} 22. Bxf4 {[%clk
0:00:51.3]} 22... Nxf4 {[%clk 0:01:00.9]} 23. Qe3 {[%clk 0:00:50.1]} 23... Nxd3
{[%clk 0:00:56.6]} 24. Rad1 {[%clk 0:00:41.1]} 24... c4 {[%clk 0:00:56.7]} 25.
b3 {[%clk 0:00:33.5]} 25... Qe7 {[%clk 0:00:50.3]} 26. Qg1 {[%clk 0:00:22]}
26... Rd8 {[%clk 0:00:43.9]} 27. bxc4 {[%clk 0:00:22]} 27... bxc4 {[%clk
0:00:43.8]} 28. Qb6 {[%clk 0:00:19.5]} 28... Re8 {[%clk 0:00:29.3]} 29. h3
{[%clk 0:00:18.3]} 29... Qc5 {[%clk 0:00:26.9]} 30. Qxc5 {[%clk 0:00:17.3]}
30... Nxc5 {[%clk 0:00:27.8]} 31. Bd5 {[%clk 0:00:17.7]} 31... Ne4 {[%clk
0:00:24.3]} 32. Kh2 {[%clk 0:00:13]} 32... Nxc3 {[%clk 0:00:23]} 33. Rd4 {[%clk
0:00:13.1]} 33... Nxd5 {[%clk 0:00:23.2]} 34. Rxd5 {[%clk 0:00:13.1]} 34... Rc7
{[%clk 0:00:23.6]} 35. Rc1 {[%clk 0:00:12.9]} 35... c3 {[%clk 0:00:21.8]} 36.
Rc2 {[%clk 0:00:13.3]} 36... Re4 {[%clk 0:00:18.4]} 37. Ra5 {[%clk 0:00:11.3]}
37... Re6 {[%clk 0:00:18.7]} 38. Ra3 {[%clk 0:00:09.7]} 38... Rec6 {[%clk
0:00:19.4]} 39. Kg3 {[%clk 0:00:09.4]} 39... Kg7 {[%clk 0:00:19.6]} 40. Kf3
{[%clk 0:00:09.2]} 40... Kf6 {[%clk 0:00:20.5]} 41. Ke3 {[%clk 0:00:09.1]} 41...
g5 {[%clk 0:00:20.3]} 42. Kd3 {[%clk 0:00:07.9]} 42... f4 {[%clk 0:00:19.9]} 43.
Ke4 {[%clk 0:00:07.7]} 43... Ke6 {[%clk 0:00:19.2]} 44. Ra5 {[%clk 0:00:06.8]}
44... Rc4+ {[%clk 0:00:18.2]} 45. Kd3 {[%clk 0:00:06.1]} 45... R4c5 {[%clk
0:00:17.3]} 46. Rxa6+ {[%clk 0:00:05.7]} 46... R7c6 {[%clk 0:00:18.2]} 47. Ra4
{[%clk 0:00:05.2]} 47... Ke5 {[%clk 0:00:17.5]} 48. Re4+ {[%clk 0:00:04.3]}
48... Kf5 {[%clk 0:00:17.7]} 49. Ra4 {[%clk 0:00:03.4]} 49... Rd5+ {[%clk
0:00:17.8]} 50. Ke2 {[%clk 0:00:03.2]} 50... f6 {[%clk 0:00:17.1]} 51. Ra3
{[%clk 0:00:03.2]} 51... Rdc5 {[%clk 0:00:17.1]} 52. Kd3 {[%clk 0:00:03]} 52...
h5 {[%clk 0:00:15.6]} 53. Raxc3 {[%clk 0:00:02.7]} 53... Rxc3+ {[%clk 0:00:16]}
54. Rxc3 {[%clk 0:00:03.6]} 54... Rd6+ {[%clk 0:00:15.8]} 55. Ke2 {[%clk
0:00:03.2]} 55... g4 {[%clk 0:00:16.6]} 56. Rc5+ {[%clk 0:00:02.8]} 56... Ke4
{[%clk 0:00:13.8]} 57. Rxh5 {[%clk 0:00:02.5]} 57... f3+ {[%clk 0:00:13.7]} 58.
gxf3+ {[%clk 0:00:02.2]} 58... gxf3+ {[%clk 0:00:14.6]} 59. Kf2 {[%clk
0:00:02.2]} 59... Rd2+ {[%clk 0:00:14.3]} 60. Ke1 {[%clk 0:00:01.6]} 60... Rxa2
{[%clk 0:00:13.6]} 61. Rh8 {[%clk 0:00:01.6]} 61... f5 {[%clk 0:00:13]} 62. Kf1
{[%clk 0:00:01.5]} 62... Kf4 {[%clk 0:00:12.9]} 63. Rh4+ {[%clk 0:00:01.1]}
63... Kg3 {[%clk 0:00:12.8]} 64. Rc4 {[%clk 0:00:01.3]} 64... Ra1+ {[%clk
0:00:12.4]} 0-1

[Event "*** Titled Tuesday Blitz"]
[Site "Chess.com"]
[Date "2020.11.24"]
[Round "9"]
[White "SpasKozhuharov"]
[Black "Orest_Vovk"]
[Result "1-0"]
[WhiteElo "2673"]
[BlackElo "2533"]
[TimeControl "180+1"]
[EndTime "12:04:39 PST"]
[Termination "SpasKozhuharov won on time"]

1. d4 {[%clk 0:03:00.9]} 1... e5 {[%clk 0:02:59.1]} 2. dxe5 {[%clk 0:03:00.1]}
2... Nc6 {[%clk 0:02:55.9]} 3. Nf3 {[%clk 0:03:00.4]} 3... Qe7 {[%clk
0:02:56.3]} 4. Nc3 {[%clk 0:02:59.6]} 4... Nxe5 {[%clk 0:02:55.7]} 5. e4 {[%clk
0:02:56.3]} 5... Nf6 {[%clk 0:02:52.8]} 6. Bg5 {[%clk 0:02:51.6]} 6... c6 {[%clk
0:02:51.6]} 7. Nxe5 {[%clk 0:02:39.6]} 7... Qxe5 {[%clk 0:02:50.9]} 8. f4 {[%clk
0:02:39.7]} 8... Qa5 {[%clk 0:02:44.9]} 9. Bd3 {[%clk 0:02:38]} 9... Bb4 {[%clk
0:02:36.7]} 10. O-O {[%clk 0:02:37]} 10... d6 {[%clk 0:02:19.3]} 11. Re1 {[%clk
0:02:21.8]} 11... Qb6+ {[%clk 0:02:01.2]} 12. Kh1 {[%clk 0:02:13.3]} 12... Ng4
{[%clk 0:02:01.1]} 13. Bh4 {[%clk 0:02:12.9]} 13... Nf2+ {[%clk 0:01:55.6]} 14.
Bxf2 {[%clk 0:02:12.5]} 14... Qxf2 {[%clk 0:01:56.5]} 15. f5 {[%clk 0:02:02.8]}
15... Bxc3 {[%clk 0:01:48.4]} 16. bxc3 {[%clk 0:02:02.3]} 16... f6 {[%clk
0:01:48.4]} 17. Qh5+ {[%clk 0:02:00.9]} 17... Ke7 {[%clk 0:01:38.1]} 18. Bc4
{[%clk 0:01:58.7]} 18... g6 {[%clk 0:01:24.8]} 19. fxg6 {[%clk 0:01:55.5]} 19...
Be6 {[%clk 0:01:24.5]} 20. g7 {[%clk 0:01:46.2]} 20... Bxc4 {[%clk 0:01:16.8]}
21. gxh8=Q {[%clk 0:01:44.6]} 21... Rxh8 {[%clk 0:01:17.7]} 22. Qh6 {[%clk
0:01:36.9]} 22... Kf7 {[%clk 0:00:59.8]} 23. Qh5+ {[%clk 0:01:29]} 23... Ke7
{[%clk 0:00:55.3]} 24. Qh6 {[%clk 0:01:28.3]} 24... Kf7 {[%clk 0:00:53.9]} 25.
Re3 {[%clk 0:01:26.3]} 25... Rg8 {[%clk 0:00:30.7]} 26. Qxh7+ {[%clk 0:01:24.1]}
26... Rg7 {[%clk 0:00:31]} 27. Qh5+ {[%clk 0:01:23.2]} 27... Ke7 {[%clk
0:00:31.3]} 28. Rg3 {[%clk 0:01:12.5]} 28... Rxg3 {[%clk 0:00:28.9]} 29. hxg3
{[%clk 0:01:10.9]} 29... Qxg3 {[%clk 0:00:29.1]} 30. Qh7+ {[%clk 0:01:10]} 30...
Bf7 {[%clk 0:00:28.1]} 31. Rf1 {[%clk 0:01:05.1]} 31... Qxc3 {[%clk 0:00:26.7]}
32. Qf5 {[%clk 0:00:58.3]} 32... Bxa2 {[%clk 0:00:19.4]} 33. Qc8 {[%clk
0:00:57.6]} 33... Be6 {[%clk 0:00:17.3]} 34. Qxb7+ {[%clk 0:00:57.2]} 34... Bd7
{[%clk 0:00:17.6]} 35. Qxa7 {[%clk 0:00:53]} 35... Qxc2 {[%clk 0:00:17.7]} 36.
Qa1 {[%clk 0:00:49.1]} 36... Kd8 {[%clk 0:00:10]} 37. Qxf6+ {[%clk 0:00:48.8]}
37... Kc7 {[%clk 0:00:10.5]} 38. e5 {[%clk 0:00:48.7]} 38... Qd3 {[%clk
0:00:06.5]} 39. Qxd6+ {[%clk 0:00:47]} 39... Qxd6 {[%clk 0:00:07.4]} 40. exd6+
{[%clk 0:00:47.7]} 40... Kxd6 {[%clk 0:00:08.3]} 41. Rd1+ {[%clk 0:00:47.4]}
41... Ke6 {[%clk 0:00:08.1]} 42. g4 {[%clk 0:00:47]} 42... c5 {[%clk 0:00:08.5]}
43. Kg1 {[%clk 0:00:44.3]} 43... Ba4 {[%clk 0:00:07.4]} 44. Rc1 {[%clk
0:00:41.7]} 44... Kd5 {[%clk 0:00:07.2]} 45. g5 {[%clk 0:00:42.6]} 45... Be8
{[%clk 0:00:06.8]} 46. g6 {[%clk 0:00:43.4]} 46... Bxg6 {[%clk 0:00:06.6]} 47.
Kf2 {[%clk 0:00:44]} 47... Be4 {[%clk 0:00:06.5]} 48. Ke3 {[%clk 0:00:44.9]}
48... c4 {[%clk 0:00:06.8]} 49. Ra1 {[%clk 0:00:43.9]} 49... Bd3 {[%clk
0:00:07.7]} 50. Ra5+ {[%clk 0:00:43.8]} 50... Kc6 {[%clk 0:00:08.3]} 51. Kd4
{[%clk 0:00:44.7]} 51... Kb6 {[%clk 0:00:08.5]} 52. Rc5 {[%clk 0:00:45.3]} 52...
Ka6 {[%clk 0:00:07.9]} 53. Kc3 {[%clk 0:00:45.1]} 53... Kb6 {[%clk 0:00:07.7]}
54. Kb4 {[%clk 0:00:45.9]} 54... Be2 {[%clk 0:00:08]} 55. Re5 {[%clk 0:00:45.6]}
55... Bd3 {[%clk 0:00:08.2]} 56. Re6+ {[%clk 0:00:46.5]} 56... Kc7 {[%clk
0:00:08.5]} 57. Kc3 {[%clk 0:00:44.3]} 57... Kd7 {[%clk 0:00:08.6]} 58. Rh6
{[%clk 0:00:45.2]} 58... Ke7 {[%clk 0:00:08.7]} 59. Kd4 {[%clk 0:00:46.1]} 59...
Kd7 {[%clk 0:00:08.3]} 60. Kd5 {[%clk 0:00:46.1]} 60... Ke7 {[%clk 0:00:08.4]}
61. Rc6 {[%clk 0:00:43.4]} 61... Kd7 {[%clk 0:00:06.8]} 62. Rc5 {[%clk
0:00:44.3]} 62... Ke7 {[%clk 0:00:06.9]} 63. Ke5 {[%clk 0:00:43.8]} 63... Kd7
{[%clk 0:00:07]} 64. Kd5 {[%clk 0:00:43.7]} 64... Ke7 {[%clk 0:00:07.2]} 65. Rc6
{[%clk 0:00:44.1]} 65... Kd7 {[%clk 0:00:07.4]} 66. Rd6+ {[%clk 0:00:44.6]}
66... Ke7 {[%clk 0:00:07.7]} 67. Kc5 {[%clk 0:00:45.5]} 67... Kf7 {[%clk
0:00:06.2]} 68. Rd7+ {[%clk 0:00:44.8]} 68... Ke6 {[%clk 0:00:06.5]} 69. Rd4
{[%clk 0:00:45.5]} 69... Ke5 {[%clk 0:00:06.8]} 70. Rd8 {[%clk 0:00:43.2]} 70...
Ke4 {[%clk 0:00:06.1]} 71. Re8+ {[%clk 0:00:44.1]} 71... Kf3 {[%clk 0:00:05.3]}
72. Kd4 {[%clk 0:00:44.6]} 72... Kf2 {[%clk 0:00:05.6]} 73. Re3 {[%clk
0:00:43.7]} 73... Kg2 {[%clk 0:00:04.7]} 74. Kc3 {[%clk 0:00:44.2]} 74... Kf2
{[%clk 0:00:04.9]} 75. Kd2 {[%clk 0:00:45.1]} 75... Kg2 {[%clk 0:00:05]} 76. Ke1
{[%clk 0:00:45.4]} 76... Kh2 {[%clk 0:00:03.6]} 77. Kf2 {[%clk 0:00:45.1]} 77...
Bf5 {[%clk 0:00:02.6]} 78. Re5 {[%clk 0:00:44.2]} 78... Bh3 {[%clk 0:00:02.6]}
79. Rc5 {[%clk 0:00:43.6]} 79... Be6 {[%clk 0:00:01.9]} 80. Rc6 {[%clk
0:00:39.8]} 80... Bh3 {[%clk 0:00:01.1]} 81. Rxc4 {[%clk 0:00:39.2]} 81... Bg2
{[%clk 0:00:01.4]} 82. Rh4+ {[%clk 0:00:39.1]} 82... Bh3 {[%clk 0:00:01.8]} 83.
Rh8 {[%clk 0:00:40]} 1-0

[Event "*** Titled Tuesday Blitz"]
[Site "Chess.com"]
[Date "2020.11.24"]
[Round "9"]
[White "AldokhinIvan"]
[Black "Zq1"]
[Result "1/2-1/2"]
[WhiteElo "2505"]
[BlackElo "2591"]
[TimeControl "180+1"]
[EndTime "12:04:41 PST"]
[Termination "Game drawn by repetition"]

1. e4 {[%clk 0:02:57.2]} 1... c5 {[%clk 0:02:59.6]} 2. Nf3 {[%clk 0:02:57.4]}
2... d6 {[%clk 0:02:59.8]} 3. d4 {[%clk 0:02:57.8]} 3... cxd4 {[%clk 0:02:59.9]}
4. Nxd4 {[%clk 0:02:58.4]} 4... Nf6 {[%clk 0:02:59.9]} 5. Nc3 {[%clk 0:02:58.7]}
5... Nc6 {[%clk 0:02:59.9]} 6. Nde2 {[%clk 0:02:54.9]} 6... g6 {[%clk
0:02:57.1]} 7. h3 {[%clk 0:02:53.8]} 7... h5 {[%clk 0:02:53.2]} 8. g3 {[%clk
0:02:53.5]} 8... b6 {[%clk 0:02:52.7]} 9. Bg2 {[%clk 0:02:52.9]} 9... Ba6 {[%clk
0:02:48.7]} 10. O-O {[%clk 0:02:15.1]} 10... Rc8 {[%clk 0:02:47.6]} 11. Bg5
{[%clk 0:02:14.3]} 11... Bg7 {[%clk 0:02:47]} 12. Re1 {[%clk 0:02:06.7]} 12...
Ne5 {[%clk 0:02:35]} 13. b3 {[%clk 0:01:55]} 13... O-O {[%clk 0:02:31.7]} 14. f4
{[%clk 0:01:48.3]} 14... Ned7 {[%clk 0:02:14.4]} 15. Rc1 {[%clk 0:01:41.4]}
15... Nh7 {[%clk 0:02:11.6]} 16. Nd5 {[%clk 0:01:26.7]} 16... Nxg5 {[%clk
0:02:10.3]} 17. fxg5 {[%clk 0:01:26.8]} 17... e6 {[%clk 0:02:05.5]} 18. Nb4
{[%clk 0:01:22.9]} 18... Bxe2 {[%clk 0:01:56.7]} 19. Rxe2 {[%clk 0:01:20.9]}
19... Qxg5 {[%clk 0:01:51.7]} 20. Nd3 {[%clk 0:01:08.4]} 20... Qxg3 {[%clk
0:01:50.3]} 21. Qe1 {[%clk 0:01:02.5]} 21... Qg5 {[%clk 0:01:37.4]} 22. c4
{[%clk 0:00:56.2]} 22... Ne5 {[%clk 0:01:29.3]} 23. Re3 {[%clk 0:00:45.9]} 23...
b5 {[%clk 0:01:18.5]} 24. Rg3 {[%clk 0:00:35.8]} 24... Nxd3 {[%clk 0:01:15.5]}
25. Rxd3 {[%clk 0:00:32.8]} 25... bxc4 {[%clk 0:01:15]} 26. Rxc4 {[%clk
0:00:31.9]} 26... Rxc4 {[%clk 0:01:13.6]} 27. bxc4 {[%clk 0:00:32.8]} 27... Be5
{[%clk 0:01:13.2]} 28. Rb3 {[%clk 0:00:25.4]} 28... Rc8 {[%clk 0:01:07.5]} 29.
Qf1 {[%clk 0:00:24.2]} 29... Rxc4 {[%clk 0:00:59.3]} 30. Qxc4 {[%clk 0:00:22.3]}
30... Qd2 {[%clk 0:00:54.5]} 31. Qf1 {[%clk 0:00:15.7]} 31... Kg7 {[%clk
0:00:47.7]} 32. Rb7 {[%clk 0:00:15.2]} 32... Bf6 {[%clk 0:00:47.7]} 33. e5
{[%clk 0:00:13.7]} 33... dxe5 {[%clk 0:00:46]} 34. Rxa7 {[%clk 0:00:13.7]} 34...
e4 {[%clk 0:00:43.5]} 35. Rb7 {[%clk 0:00:08.9]} 35... e3 {[%clk 0:00:41]} 36.
Bf3 {[%clk 0:00:09.1]} 36... Be5 {[%clk 0:00:34.6]} 37. Qe2 {[%clk 0:00:07.5]}
37... Qd4 {[%clk 0:00:29.8]} 38. Rb3 {[%clk 0:00:06.1]} 38... Qf4 {[%clk
0:00:29.5]} 39. Kf1 {[%clk 0:00:03.4]} 39... Bd4 {[%clk 0:00:26.1]} 40. a4
{[%clk 0:00:03.9]} 40... Qe5 {[%clk 0:00:17.3]} 41. a5 {[%clk 0:00:03.3]} 41...
Qxa5 {[%clk 0:00:15.9]} 42. Qb5 {[%clk 0:00:03.6]} 42... Qd2 {[%clk 0:00:14.1]}
43. Qe2 {[%clk 0:00:03.5]} 43... Qc1+ {[%clk 0:00:13.3]} 44. Kg2 {[%clk
0:00:03.8]} 44... e5 {[%clk 0:00:11.5]} 45. Rb7 {[%clk 0:00:03.5]} 45... Qc5
{[%clk 0:00:09.4]} 46. Qa2 {[%clk 0:00:03.1]} 46... Qf8 {[%clk 0:00:06.9]} 47.
Bd5 {[%clk 0:00:03]} 47... Kh6 {[%clk 0:00:07.2]} 48. Rxf7 {[%clk 0:00:03.6]}
48... Qd8 {[%clk 0:00:06.4]} 49. Qe2 {[%clk 0:00:04.1]} 49... Qg5+ {[%clk
0:00:06.2]} 50. Kh1 {[%clk 0:00:03.4]} 50... Qg3 {[%clk 0:00:05.8]} 51. Qg2
{[%clk 0:00:03.6]} 51... Qe1+ {[%clk 0:00:05.8]} 52. Qf1 {[%clk 0:00:02.8]}
52... Qg3 {[%clk 0:00:05.3]} 53. Qf3 {[%clk 0:00:03.1]} 53... Qe1+ {[%clk
0:00:04.7]} 54. Kh2 {[%clk 0:00:03]} 54... Qd2+ {[%clk 0:00:04.5]} 55. Qg2
{[%clk 0:00:02.9]} 55... Qxg2+ {[%clk 0:00:04.5]} 56. Kxg2 {[%clk 0:00:02.6]}
56... e2 {[%clk 0:00:05.1]} 57. Rf1 {[%clk 0:00:02.7]} 57... exf1=Q+ {[%clk
0:00:04]} 58. Kxf1 {[%clk 0:00:03.3]} 58... Kg5 {[%clk 0:00:04.6]} 59. Kg2
{[%clk 0:00:03.9]} 59... Kf4 {[%clk 0:00:04.8]} 60. Bf7 {[%clk 0:00:03.8]} 60...
Kf5 {[%clk 0:00:03.9]} 61. Kf3 {[%clk 0:00:04.2]} 61... e4+ {[%clk 0:00:04]} 62.
Ke2 {[%clk 0:00:04.8]} 62... h4 {[%clk 0:00:04.2]} 63. Be8 {[%clk 0:00:04.6]}
63... g5 {[%clk 0:00:04.4]} 64. Bd7+ {[%clk 0:00:05.1]} 64... Kf4 {[%clk
0:00:04.8]} 65. Bg4 {[%clk 0:00:05.6]} 65... e3 {[%clk 0:00:05.2]} 66. Bc8
{[%clk 0:00:06]} 66... Be5 {[%clk 0:00:05.5]} 67. Bd7 {[%clk 0:00:06.5]} 67...
Bf6 {[%clk 0:00:06.1]} 68. Bc8 {[%clk 0:00:07.1]} 68... Be5 {[%clk 0:00:06.6]}
69. Bd7 {[%clk 0:00:07.7]} 69... Bf6 {[%clk 0:00:07.3]} 70. Bg4 {[%clk
0:00:08.2]} 70... Be5 {[%clk 0:00:07.9]} 71. Bc8 {[%clk 0:00:08.8]} 71... Bf6
{[%clk 0:00:08.6]} 72. Bg4 {[%clk 0:00:09.4]} 72... Be5 {[%clk 0:00:09.3]} 73.
Bc8 {[%clk 0:00:09.9]} 73... Bf6 {[%clk 0:00:10]} 74. Bg4 {[%clk 0:00:10.4]}
1/2-1/2